fUSD/lending_fUSD_20250623
["ID","MTS","AMOUNT","RATE_DAILY","PERIOD"]
[367129337,1750665060674,-500.0,0.00027397,3]
[367129338,1750665060683,-490.0,0.00027397,3]
[367129339,1750665060693,-500.0,0.00027397,3]
[367129340,1750665060703,-500.0,0.00027397,3]
[367129341,1750665060712,-490.0,0.00027397,3]
[367129342,1750665060721,-500.0,0.00027397,3]
[367129343,1750665060730,-490.0,0.00027397,3]
[367129344,1750665060739,-500.0,0.00027397,3]
[367129345,1750665060749,-500.0,0.00027397,3]
[367129346,1750665060758,-500.0,0.00027397,3]
[367129347,1750665060767,-500.0,0.00027397,3]
[367129348,1750665060777,-500.0,0.00027397,3]
[367129349,1750665060786,-500.0,0.00027397,3]
[367129350,1750665060795,-183.43798966,0.00027397,3]
[367129351,1750665060805,-490.0,0.00027397,3]
[367129352,1750665060814,-491.11470012,0.00027397,3]
[367129353,1750665060824,-490.0,0.00027397,3]
[367129354,1750665060833,-490.0,0.00027397,3]
[367129355,1750665060843,-4291.55,0.00027397,3]
[367129356,1750665060852,-933.58,0.00027397,3]
[367129357,1750665060862,-490.0,0.00027397,3]
[367129358,1750665060872,-1044.21,0.00027397,3]
[367129359,1750665060882,-1656.36,0.00027397,3]
[367129360,1750665060891,-490.0,0.00027397,3]
[367129361,1750665060901,-490.38397467,0.00027397,3]
[367129362,1750665060910,-490.0,0.00027397,3]
[367129363,1750665060925,-1188.44,0.00027397,3]
[367129364,1750665060934,-490.0,0.00027397,3]
[367129365,1750665060943,-712.63,0.00027397,3]
[367129366,1750665060952,-955.97,0.00027397,3]
[367129367,1750665060962,-490.0,0.00027397,3]
[367129368,1750665060971,-491.79352016,0.00027397,3]
[367129369,1750665060980,-490.0,0.00027397,3]
[367129370,1750665060991,-1229.83,0.00027397,3]
[367129371,1750665061000,-490.0,0.00027397,3]
[367129372,1750665061010,-490.0,0.00027397,3]
[367129373,1750665061019,-490.0,0.00027397,3]
[367129374,1750665061029,-490.0,0.00027397,3]
[367129375,1750665061037,-490.0,0.00027397,3]
[367129376,1750665061047,-491.93741575,0.00027397,3]
[367129377,1750665061056,-490.0,0.00027397,3]
[367129378,1750665061065,-725.05,0.00027397,3]
[367129379,1750665061074,-1130.89,0.00027397,3]
[367129380,1750665061084,-505.79,0.00027397,3]
[367129381,1750665061093,-300.0,0.00027397,3]
[367129382,1750665061102,-551.22,0.00027397,3]
[367129383,1750665061112,-490.0,0.00027397,3]
[367129384,1750665061121,-490.0,0.00027397,3]
[367129385,1750665061130,-490.0,0.00027397,3]
[367129386,1750665061140,-229.7621378,0.00027397,3]
[367129387,1750665061149,-490.0,0.00027397,3]
[367129388,1750665061158,-490.0,0.00027397,3]
[367129389,1750665061167,-5782.36,0.00027397,3]
[367129390,1750665061177,-8133.36,0.00027397,3]
[367129391,1750665061186,-490.0,0.00027397,2]
[367129392,1750665061195,-881.99,0.00027397,3]
[367129393,1750665061204,-1196.57,0.00027397,3]
[367129394,1750665061213,-1074.01,0.00027397,3]
[367129395,1750665061223,-1044.39,0.00027397,60]
[367129396,1750665061232,-490.0,0.00027397,3]
[367129397,1750665061241,-490.0,0.00027397,3]
[367129398,1750665061250,-2487.78,0.00027397,3]
[367129399,1750665061260,-1615.17,0.00027397,3]
[367129400,1750665061269,-531.94857183,0.00027397,3]
[367129401,1750665061278,-316.51724291,0.00027397,3]
[367129402,1750665061287,-490.0,0.00027397,3]
[367129403,1750665061297,-1010.88,0.00027397,3]
[367129404,1750665061307,-2044.71,0.00027397,3]
[367129405,1750665061316,-490.0,0.00027397,3]
[367129406,1750665061325,-607.3,0.00027397,3]
[367129407,1750665061334,-490.0,0.00027397,3]
[367129408,1750665061343,-1117.87,0.00027397,3]
[367129409,1750665061353,-490.0,0.00027397,3]
[367129410,1750665061362,-1227.5,0.00027397,3]
[367129411,1750665061373,-490.0,0.00027397,3]
[367129412,1750665061382,-2305.53,0.00027397,3]
[367129413,1750665061393,-508.00948786,0.00027397,3]
[367129414,1750665061404,-722.87,0.00027397,3]
[367129415,1750665061415,-943.84,0.00027397,3]
[367129416,1750665061425,-490.0,0.00027397,3]
[367129417,1750665061506,-490.0,0.00027397,3]
[367129418,1750665061515,-490.0,0.00027397,3]
[367129419,1750665061525,-5428.27,0.00027397,3]
[367129420,1750665061534,-874.3,0.00027397,3]
[367129421,1750665061543,-490.0,0.00027397,3]
[367129422,1750665061554,-1288.28,0.00027397,3]
[367129423,1750665061564,-490.0,0.00027397,3]
[367129424,1750665061575,-490.0,0.00027397,3]
[367129425,1750665061586,-490.0,0.00027397,3]
[367129426,1750665061595,-23116.75,0.00027397,3]
[367129427,1750665061606,-163.23500014,0.00027397,3]
[367129428,1750665061616,-1255.63,0.00027397,3]
[367129429,1750665061626,-1226.13,0.00027397,3]
[367129430,1750665061635,-490.0,0.00027397,3]
[367129431,1750665061644,-490.0,0.00027397,3]
[367129432,1750665061654,-490.0,0.00027397,3]
[367129433,1750665061664,-490.0,0.00027397,3]
[367129434,1750665061673,-506.19,0.00027397,3]
[367129435,1750665061682,-5920.75,0.00027397,3]
[367129436,1750665061691,-3800.08,0.00027397,3]
[367129437,1750665061701,-491.34781076,0.00027397,3]
[367129438,1750665061710,-497.16471244,0.00027397,3]
[367129439,1750665061719,-490.0,0.00027397,3]
[367129440,1750665061729,-490.0,0.00027397,3]
[367129441,1750665061738,-1199.86,0.00027397,3]
[367129442,1750665061748,-490.0,0.00027397,3]
[367129443,1750665061757,-490.0,0.00027397,3]
[367129444,1750665061767,-490.0,0.00027397,3]
[367129445,1750665061777,-490.0,0.00027397,3]
[367129446,1750665061786,-2064.36,0.00027397,3]
[367129447,1750665061796,-490.0,0.00027397,3]
[367129448,1750665061805,-3510.35,0.00027397,3]
[367129449,1750665061814,-493.00855477,0.00027397,3]
[367129450,1750665061824,-1771.9,0.00027397,3]
[367129451,1750665061833,-1109.69,0.00027397,3]
[367129452,1750665061843,-917.32,0.00027397,3]
[367129453,1750665061853,-490.0,0.00027397,3]
[367129454,1750665061862,-490.0,0.00027397,3]
[367129455,1750665061872,-605.35,0.00027397,3]
[367129456,1750665061881,-1200.51,0.00027397,3]
[367129457,1750665061891,-807.01,0.00027397,3]
[367129458,1750665061900,-493.68795833,0.00027397,3]
[367129459,1750665061910,-490.0,0.00027397,3]
[367129460,1750665061922,-490.0,0.00027397,3]
[367129461,1750665061932,-490.0,0.00027397,3]
[367129462,1750665061941,-1345.63,0.00027397,3]
[367129463,1750665061951,-517.745421,0.00027397,3]
[367129464,1750665061962,-490.0,0.00027397,3]
[367129465,1750665061972,-3540.17,0.00027397,3]
[367129466,1750665061982,-1286.1,0.00027397,3]
[367129467,1750665061991,-4365.41,0.00027397,3]
[367129468,1750665062003,-490.0,0.00027397,3]
[367129469,1750665062014,-269.681326,0.00027397,3]
[367129470,1750665062023,-584.71,0.00027397,3]
[367129471,1750665062032,-740.92,0.00027397,3]
[367129472,1750665062042,-3910.06,0.00027397,3]
[367129473,1750665062051,-720.12,0.00027397,3]
[367129474,1750665062060,-1622.01,0.00027397,3]
[367129475,1750665062069,-516.11,0.00027397,3]
[367129476,1750665062079,-490.0,0.00027397,3]
[367129477,1750665062090,-2230.53,0.00027397,3]
[367129478,1750665062100,-1195.43,0.00027397,3]
[367129479,1750665062108,-490.0,0.00027397,3]
[367129480,1750665062119,-2134.31,0.00027397,3]
[367129481,1750665062128,-993.86,0.00027397,3]
[367129482,1750665062138,-954.76,0.00027397,3]
[367129483,1750665062147,-490.0,0.00027397,3]
[367129484,1750665062157,-993.86,0.00027397,3]
[367129485,1750665062166,-1421.58,0.00027397,3]
[367129486,1750665062176,-993.86,0.00027397,3]
[367129487,1750665062185,-993.86,0.00027397,3]
[367129488,1750665062194,-993.86,0.00027397,3]
[367129489,1750665062204,-993.86,0.00027397,3]
[367129490,1750665062213,-993.86,0.00027397,3]
[367129491,1750665062223,-2473.53,0.00027397,3]
[367129492,1750665062232,-155.631381,0.00027397,3]
[367129493,1750665062241,-993.86,0.00027397,3]
[367129494,1750665062251,-993.86,0.00027397,3]
[367129495,1750665062260,-490.0,0.00027397,3]
[367129496,1750665062269,-993.86,0.00027397,3]
[367129497,1750665062279,-993.86,0.00027397,3]
[367129498,1750665062288,-1392.26,0.00027397,3]
[367129499,1750665062297,-490.0,0.00027397,3]
[367129500,1750665062307,-993.86,0.00027397,3]
[367129501,1750665062316,-490.0,0.00027397,3]
[367129502,1750665062326,-993.86,0.00027397,3]
[367129503,1750665062335,-993.86,0.00027397,3]
[367129504,1750665062345,-993.86,0.00027397,3]
[367129505,1750665062354,-993.86,0.00027397,3]
[367129506,1750665062364,-993.86,0.00027397,3]
[367129507,1750665062374,-993.86,0.00027397,3]
[367129508,1750665062383,-1398.46,0.00027397,3]
[367129509,1750665062393,-993.86,0.00027397,3]
[367129510,1750665062402,-993.86,0.00027397,3]
[367129511,1750665062411,-993.86,0.00027397,3]
[367129512,1750665062421,-993.86,0.00027397,3]
[367129513,1750665062430,-490.0,0.00027397,3]
[367129514,1750665062440,-993.86,0.00027397,3]
[367129515,1750665062450,-994.05915066,0.00027397,3]
[367129516,1750665062460,-490.0,0.00027397,3]
[367129517,1750665062469,-490.0,0.00027397,3]
[367129518,1750665062478,-490.0,0.00027397,3]
[367129519,1750665062488,-490.0,0.00027397,3]
[367129520,1750665062497,-490.0,0.00027397,3]
[367129521,1750665062507,-6322.71,0.00027397,3]
[367129522,1750665062517,-956.28,0.00027397,3]
[367129523,1750665062527,-502.66,0.00027397,3]
[367129524,1750665062536,-490.0,0.00027397,3]
[367129525,1750665062547,-491.36691512,0.00027397,3]
[367129526,1750665062557,-490.0,0.00027397,3]
[367129527,1750665062567,-490.0,0.00027397,3]
[367129528,1750665062580,-490.0,0.00027397,3]
[367129529,1750665062592,-658.813489,0.00027397,3]
[367129530,1750665062602,-490.0,0.00027397,3]
[367129531,1750665062612,-464.847149,0.00027397,3]
[367129532,1750665062623,-490.0,0.00027397,3]
[367129533,1750665062632,-524.2,0.00027397,3]
[367129534,1750665062642,-490.0,0.00027397,3]
[367129535,1750665062651,-300.0,0.00027397,2]
[367129536,1750665062661,-3149.96,0.00027397,2]
[367129537,1750665062670,-160.03,0.00027397,80]
[367129538,1750665062680,-175.51,0.00027397,2]
[367129539,1750665062689,-150.16,0.00027397,2]
[367129540,1750665062698,-639.38300335,0.0002767,10]
[367129541,1750665062707,-300.0,0.0002767,10]
[367129542,1750665062717,-300.0,0.0002767,10]
[367129543,1750665062726,-311.01437501,0.0002767,10]
[367129544,1750665062736,-500.0,0.0002767,3]
[367129545,1750665062745,-500.0,0.0002767,3]
[367129546,1750665062755,-500.0,0.0002767,3]
[367129547,1750665062764,-500.0,0.0002767,3]
[367129548,1750665062773,-1069.47,0.0002767,3]
[367129549,1750665062783,-1069.47,0.0002767,3]
[367129550,1750665062792,-2083.73811075,0.00027671,2]
[367129551,1750665062801,-628.57514943,0.00027671,3]
[367129552,1750665062811,-490.0,0.00027671,3]
[367129553,1750665062820,-490.0,0.00027671,3]
[367129554,1750665062830,-501.41927299,0.00027671,3]
[367129555,1750665062839,-490.0,0.00027671,3]
[367129556,1750665062849,-490.0,0.00027671,3]
[367129557,1750665062858,-490.0,0.00027671,3]
[367129558,1750665062867,-490.0,0.00027671,3]
[367129559,1750665062878,-490.0,0.00027671,3]
[367129560,1750665062887,-490.0,0.00027671,3]
[367129561,1750665062897,-490.0,0.00027671,3]
[367129562,1750665062907,-490.42463085,0.00027671,3]
[367129563,1750665062919,-490.0,0.00027671,3]
[367129564,1750665062928,-490.0,0.00027671,3]
[367129565,1750665062938,-490.0,0.00027671,3]
[367129566,1750665062947,-490.0,0.00027671,3]
[367129567,1750665062956,-490.0,0.00027671,3]
[367129568,1750665062966,-490.0,0.00027671,3]
[367129569,1750665062976,-490.0,0.00027671,3]
[367129570,1750665062985,-481.79954038,0.00027671,3]
[367129571,1750665062997,-490.0,0.00027671,3]
[367129572,1750665063007,-490.0,0.00027671,3]
[367129573,1750665063017,-490.0,0.00027671,3]
[367129574,1750665063026,-490.0,0.00027671,3]
[367129575,1750665063035,-490.0,0.00027671,3]
[367129576,1750665063045,-490.0,0.00027671,3]
[367129577,1750665063054,-490.0,0.00027671,3]
[367129578,1750665063070,-500.0,0.00027671,3]
[367129579,1750665063079,-490.0,0.00027671,3]
[367129580,1750665063089,-490.0,0.00027671,3]
[367129581,1750665063099,-490.0,0.00027671,3]
[367129582,1750665063109,-490.0,0.00027671,3]
[367129583,1750665063118,-490.0,0.00027671,3]
[367129584,1750665063127,-490.0,0.00027671,3]
[367129585,1750665063136,-490.0,0.00027671,3]
[367129586,1750665063145,-490.0,0.00027671,3]
[367129587,1750665063155,-490.0,0.00027671,3]
[367129588,1750665063164,-490.0,0.00027671,3]
[367129589,1750665063173,-490.0,0.00027671,3]
[367129590,1750665063183,-490.0,0.00027671,3]
[367129591,1750665063192,-490.0,0.00027671,3]
[367129592,1750665063201,-490.0,0.00027671,3]
[367129593,1750665063210,-386.68370671,0.00027671,3]
[367129594,1750665063219,-490.0,0.00027671,3]
[367129595,1750665063229,-490.0,0.00027671,3]
[367129596,1750665063238,-490.0,0.00027671,3]
[367129597,1750665063247,-185.13823897,0.00027671,3]
[367129598,1750665063257,-490.0,0.00027671,3]
[367129599,1750665063266,-490.0,0.00027671,3]
[367129600,1750665063275,-490.0,0.00027671,3]
[367129601,1750665063285,-409.97704196,0.00027671,3]
[367129602,1750665063294,-490.0,0.00027671,3]
[367129603,1750665063304,-492.76664575,0.00027671,3]
[367129604,1750665063313,-490.0,0.00027671,3]
[367129605,1750665063323,-490.0,0.00027671,3]
[367129606,1750665063332,-490.0,0.00027671,3]
[367129607,1750665063342,-490.0,0.00027671,3]
[367129608,1750665063352,-490.0,0.00027671,3]
[367129609,1750665063361,-490.0,0.00027671,3]
[367129610,1750665063371,-490.0,0.00027671,3]
[367129611,1750665063380,-490.0,0.00027671,3]
[367129612,1750665063390,-490.0,0.00027671,3]
[367129613,1750665063399,-490.0,0.00027671,3]
[367129614,1750665063408,-490.0,0.00027671,3]
[367129615,1750665063418,-490.0,0.00027671,3]
[367129616,1750665063427,-490.0,0.00027671,3]
[367129617,1750665063437,-490.0,0.00027671,3]
[367129618,1750665063446,-490.0,0.00027671,3]
[367129619,1750665063456,-490.0,0.00027671,3]
[367129620,1750665063465,-490.0,0.00027671,3]
[367129621,1750665063475,-490.0,0.00027671,3]
[367129622,1750665063484,-636.7879598,0.00027671,3]
[367129623,1750665063494,-490.0,0.00027671,3]
[367129624,1750665063504,-490.0,0.00027671,3]
[367129625,1750665063514,-341.89701269,0.00027671,3]
[367129626,1750665063523,-490.0,0.00027671,3]
[367129627,1750665063533,-927.67,0.00027671,3]
[367129628,1750665063542,-490.0,0.00027671,3]
[367129629,1750665063552,-490.0,0.00027671,3]
[367129630,1750665063561,-464.39914058,0.00027671,3]
[367129631,1750665063570,-490.0,0.00027671,3]
[367129632,1750665063580,-490.0,0.00027671,3]
[367129633,1750665063589,-490.0,0.00027671,3]
[367129634,1750665063598,-1000.0,0.00027671,3]
[367129635,1750665063608,-490.0,0.00027671,3]
[367129636,1750665063619,-490.0,0.00027671,3]
[367129637,1750665063629,-490.0,0.00027671,3]
[367129638,1750665063639,-490.0,0.00027671,3]
[367129639,1750665063648,-490.0,0.00027671,3]
[367129640,1750665063658,-490.0,0.00027671,3]
[367129641,1750665063667,-490.0,0.00027671,3]
[367129642,1750665063678,-490.0,0.00027671,3]
[367129643,1750665063687,-490.0,0.00027671,3]
[367129644,1750665063697,-634.47514803,0.00027671,3]
[367129645,1750665063706,-490.0,0.00027671,3]
[367129646,1750665063716,-668.01,0.00027671,3]
[367129647,1750665063725,-490.0,0.00027671,3]
[367129648,1750665063735,-490.0,0.00027671,3]
[367129649,1750665063744,-490.0,0.00027671,3]
[367129650,1750665063753,-490.0,0.00027671,3]
[367129651,1750665063763,-712.2,0.00027671,3]
[367129652,1750665063772,-490.0,0.00027671,3]
[367129653,1750665063782,-316.73585332,0.00027671,3]
[367129654,1750665063791,-247.72737305,0.00027671,3]
[367129655,1750665063800,-490.0,0.00027671,3]
[367129656,1750665063810,-496.69677644,0.00027671,3]
[367129657,1750665063820,-598.16,0.00027671,3]
[367129658,1750665063830,-490.0,0.00027671,3]
[367129659,1750665063840,-708.42,0.00027671,3]
[367129660,1750665063850,-904.35,0.00027671,3]
[367129661,1750665063859,-356.31865341,0.00027671,3]
[367129662,1750665063869,-490.0,0.00027671,3]
[367129663,1750665063879,-490.0,0.00027671,3]
[367129664,1750665063889,-490.0,0.00027671,3]
[367129665,1750665063898,-490.0,0.00027671,3]
[367129666,1750665063908,-490.0,0.00027671,3]
[367129667,1750665063919,-490.0,0.00027671,3]
[367129668,1750665063931,-490.0,0.00027671,3]
[367129669,1750665063941,-490.0,0.00027671,3]
[367129670,1750665063950,-490.0,0.00027671,3]
[367129671,1750665063961,-490.0,0.00027671,3]
[367129672,1750665063972,-490.0,0.00027671,3]
[367129673,1750665063982,-490.0,0.00027671,3]
[367129674,1750665063991,-490.0,0.00027671,3]
[367129675,1750665064001,-490.0,0.00027671,3]
[367129676,1750665064011,-490.0,0.00027671,3]
[367129677,1750665064020,-490.0,0.00027671,3]
[367129678,1750665064030,-490.0,0.00027671,3]
[367129679,1750665064040,-490.0,0.00027671,3]
[367129680,1750665064049,-490.0,0.00027671,3]
[367129681,1750665064059,-490.0,0.00027671,3]
[367129682,1750665064069,-936.53,0.00027671,3]
[367129683,1750665064078,-490.0,0.00027671,3]
[367129684,1750665064088,-490.0,0.00027671,3]
[367129685,1750665064097,-490.0,0.00027671,3]
[367129686,1750665064107,-490.0,0.00027671,3]
[367129687,1750665064116,-490.0,0.00027671,3]
[367129688,1750665064126,-491.68815622,0.00027671,3]
[367129689,1750665064136,-490.0,0.00027671,3]
[367129690,1750665064146,-490.0,0.00027671,3]
[367129691,1750665064155,-490.0,0.00027671,3]
[367129692,1750665064165,-490.0,0.00027671,3]
[367129693,1750665064174,-490.0,0.00027671,3]
[367129694,1750665064184,-490.0,0.00027671,3]
[367129695,1750665064194,-490.0,0.00027671,3]
[367129696,1750665064204,-490.0,0.00027671,3]
[367129697,1750665064213,-490.0,0.00027671,3]
[367129698,1750665064223,-490.0,0.00027671,3]
[367129699,1750665064233,-490.0,0.00027671,3]
[367129700,1750665064242,-392.6055373,0.00027671,3]
[367129701,1750665064252,-490.0,0.00027671,3]
[367129702,1750665064261,-898.51,0.00027671,3]
[367129703,1750665064271,-934.07,0.00027671,3]
[367129704,1750665064280,-490.0,0.00027671,3]
[367129705,1750665064289,-430.89699591,0.00027671,3]
[367129706,1750665064299,-490.0,0.00027671,3]
[367129707,1750665064309,-490.0,0.00027671,3]
[367129708,1750665064318,-490.0,0.00027671,3]
[367129709,1750665064327,-1055.8,0.00027671,3]
[367129710,1750665064337,-490.0,0.00027671,3]
[367129711,1750665064346,-490.0,0.00027671,3]
[367129712,1750665064355,-490.0,0.00027671,3]
[367129713,1750665064365,-490.0,0.00027671,3]
[367129714,1750665064376,-490.0,0.00027671,3]
[367129715,1750665064386,-490.0,0.00027671,3]
[367129716,1750665064395,-511.53,0.00027671,3]
[367129717,1750665064404,-610.19352075,0.00027671,3]
[367129718,1750665064414,-496.91429781,0.00027671,3]
[367129719,1750665064423,-490.0,0.00027671,3]
[367129720,1750665064433,-490.0,0.00027671,3]
[367129721,1750665064442,-490.0,0.00027671,3]
[367129722,1750665064452,-490.0,0.00027671,3]
[367129723,1750665064461,-490.0,0.00027671,3]
[367129724,1750665064471,-490.0,0.00027671,3]
[367129725,1750665064480,-203.47884326,0.00027671,3]
[367129726,1750665064490,-490.0,0.00027671,3]
[367129727,1750665064500,-490.0,0.00027671,3]
[367129728,1750665064509,-490.0,0.00027671,3]
[367129729,1750665064520,-490.0,0.00027671,3]
[367129730,1750665064529,-490.0,0.00027671,3]
[367129731,1750665064538,-600.83,0.00027671,3]
[367129732,1750665064548,-490.0,0.00027671,3]
[367129733,1750665064558,-490.0,0.00027671,3]
[367129734,1750665064569,-490.0,0.00027671,3]
[367129735,1750665064578,-588.13,0.00027671,3]
[367129736,1750665064588,-514.42222422,0.00027671,3]
[367129737,1750665064597,-490.0,0.00027671,3]
[367129738,1750665064606,-490.0,0.00027671,3]
[367129739,1750665064616,-490.0,0.00027671,3]
[367129740,1750665064627,-490.0,0.00027671,3]
[367129741,1750665064636,-490.0,0.00027671,3]
[367129742,1750665064646,-490.0,0.00027671,3]
[367129743,1750665064655,-490.0,0.00027671,3]
[367129744,1750665064665,-490.0,0.00027671,3]
[367129745,1750665064674,-490.0,0.00027671,3]
[367129746,1750665064684,-490.0,0.00027671,3]
[367129747,1750665064693,-338.2023351,0.00027671,3]
[367129748,1750665064703,-490.0,0.00027671,3]
[367129749,1750665064712,-384.65044729,0.00027671,3]
[367129750,1750665064723,-852.34,0.00027671,3]
[367129751,1750665064732,-490.0,0.00027671,3]
[367129752,1750665064742,-490.0,0.00027671,3]
[367129753,1750665064751,-490.0,0.00027671,3]
[367129754,1750665064761,-490.0,0.00027671,3]
[367129755,1750665064770,-490.0,0.00027671,3]
[367129756,1750665064779,-490.0,0.00027671,3]
[367129757,1750665064788,-490.0,0.00027671,3]
[367129758,1750665064798,-972.8,0.00027671,3]
[367129759,1750665064807,-490.0,0.00027671,3]
[367129760,1750665064817,-490.0,0.00027671,3]
[367129761,1750665064827,-490.0,0.00027671,3]
[367129762,1750665064836,-613.97,0.00027671,3]
[367129763,1750665064846,-490.0,0.00027671,3]
[367129764,1750665064855,-490.0,0.00027671,3]
[367129765,1750665064865,-490.0,0.00027671,3]
[367129766,1750665064875,-490.0,0.00027671,3]
[367129767,1750665064884,-490.0,0.00027671,3]
[367129768,1750665064894,-490.0,0.00027671,3]
[367129769,1750665064904,-490.0,0.00027671,3]
[367129770,1750665064914,-490.0,0.00027671,3]
[367129771,1750665064927,-490.0,0.00027671,3]
[367129772,1750665064936,-490.0,0.00027671,3]
[367129773,1750665064946,-490.0,0.00027671,3]
[367129774,1750665064955,-490.0,0.00027671,3]
[367129775,1750665064966,-490.0,0.00027671,3]
[367129776,1750665064976,-490.0,0.00027671,3]
[367129777,1750665064986,-490.0,0.00027671,3]
[367129778,1750665064998,-490.0,0.00027671,3]
[367129779,1750665065007,-490.0,0.00027671,3]
[367129780,1750665065016,-490.0,0.00027671,3]
[367129781,1750665065025,-490.0,0.00027671,3]
[367129782,1750665065035,-490.0,0.00027671,3]
[367129783,1750665065044,-490.0,0.00027671,3]
[367129784,1750665065053,-490.0,0.00027671,3]
[367129785,1750665065063,-490.0,0.00027671,3]
[367129786,1750665065072,-490.0,0.00027671,3]
[367129787,1750665065082,-490.0,0.00027671,3]
[367129788,1750665065091,-490.0,0.00027671,3]
[367129789,1750665065102,-490.0,0.00027671,3]
[367129790,1750665065113,-490.0,0.00027671,3]
[367129791,1750665065126,-490.0,0.00027671,3]
[367129792,1750665065136,-950.12,0.00027671,3]
[367129793,1750665065145,-490.0,0.00027671,3]
[367129794,1750665065155,-490.0,0.00027671,3]
[367129795,1750665065165,-490.0,0.00027671,3]
[367129796,1750665065175,-490.0,0.00027671,3]
[367129797,1750665065186,-490.0,0.00027671,3]
[367129798,1750665065195,-490.0,0.00027671,3]
[367129799,1750665065204,-490.0,0.00027671,3]
[367129800,1750665065214,-490.0,0.00027671,3]
[367129801,1750665065223,-490.0,0.00027671,3]
[367129802,1750665065233,-490.0,0.00027671,3]
[367129803,1750665065242,-732.25,0.00027671,3]
[367129804,1750665065251,-678.97,0.00027671,3]
[367129805,1750665065260,-490.0,0.00027671,3]
[367129806,1750665065269,-490.0,0.00027671,3]
[367129807,1750665065277,-490.0,0.00027671,3]
[367129808,1750665065286,-838.48,0.00027671,3]
[367129809,1750665065296,-490.0,0.00027671,3]
[367129810,1750665065305,-490.0,0.00027671,3]
[367129811,1750665065314,-699.02,0.00027671,3]
[367129812,1750665065323,-490.0,0.00027671,3]
[367129813,1750665065332,-564.25,0.00027671,3]
[367129814,1750665065341,-490.0,0.00027671,3]
[367129815,1750665065350,-344.71779099,0.00027671,3]
[367129816,1750665065358,-1071.68,0.00027671,3]
[367129817,1750665065368,-490.0,0.00027671,3]
[367129818,1750665065379,-490.0,0.00027671,3]
[367129819,1750665065388,-699.34,0.00027671,3]
[367129820,1750665065397,-662.89,0.00027671,3]
[367129821,1750665065407,-564.94,0.00027671,3]
[367129822,1750665065416,-490.0,0.00027671,3]
[367129823,1750665065425,-490.0,0.00027671,3]
[367129824,1750665065434,-490.0,0.00027671,3]
[367129825,1750665065443,-490.0,0.00027671,3]
[367129826,1750665065453,-490.0,0.00027671,3]
[367129827,1750665065462,-490.0,0.00027671,3]
[367129828,1750665065471,-1230.15,0.00027671,3]
[367129829,1750665065481,-490.0,0.00027671,3]
[367129830,1750665065490,-490.0,0.00027671,3]
[367129831,1750665065499,-490.0,0.00027671,3]
[367129832,1750665065507,-582.52,0.00027671,3]
[367129833,1750665065518,-490.0,0.00027671,3]
[367129834,1750665065527,-490.0,0.00027671,3]
[367129835,1750665065537,-943.42,0.00027671,3]
[367129836,1750665065546,-490.0,0.00027671,3]